[Event "Romanian Superliga Women 2024"]
[Site "Mamaia"]
[Date "2024.09.30"]
[Round "1.10"]
[White "Fataliyeva, Ulviyya"]
[Black "Sunea, Sara Maria"]
[Result "1-0"]
[Annotator "RC"]
[ECO "B29"]
[WhiteElo "2378"]
[BlackElo "1871"]
[PlyCount "53"]
[EventDate "2024.09.26"]
[EventType "team-tourn"]
[EventCountry "ROU"]
[SourceTitle "playchess.com"]
[Source "ChessBase"]
[SourceQuality "1"]
[TimeControl "40/5400+30:1800+30"]

1. e4 {[%emt 0:00:11]} c5 {[%emt 0:00:06]} 2. Nf3 {[%emt 0:00:06]} Nf6 {[%emt 0:00:09]} 3. e5 {[%emt 0:02:13]} Nd5 {[%emt 0:00:06]} 4. d4 {[%emt 0:01:54]} cxd4 {[%emt 0:07:21]} 5. Qxd4 {[%emt 0:00:07]} e6 {[%emt 0:00:57]} 6. a3 {[%emt 0:07:52]} Nc6 {[%emt 0:02:08]} 7. Qe4 {[%emt 0:00:14]} f5 {[%emt 0:01:25]} 8. Qe2 {[%emt 0:01:21]} Be7 {[%emt 0:16:00]} 9. c4 {[%emt 0:01:27]} Nc7 {[%emt 0:01:35]} 10. Nc3 {[%emt 0:00:34]} d5 {[%emt 0:04:13]} 11. exd6 {[%emt 0:01:31]} Qxd6 {[%emt 0:00:51]} 12. Be3 {[%emt 0:00:28]} Bf6 {[%emt 0:01:22]} 13. Qc2 {[%emt 0:03:23]} e5 {[%emt 0:05:30]} 14. Rd1 {[%emt 0:03:37]} Qe7 {[%emt 0:02:18]} 15. Nd5 {[%emt 0:01:05]} Qf7 {[%emt 0:11:29]} 16. Nxf6+ {[%emt 0:11:18]} Qxf6 {[%emt 0:01:48]} 17. Bg5 {[%emt 0:00:11]} Qe6 {[%emt 0:04:50]} 18. c5 {[%emt 0:01:00]} Nd4 {[%emt 0:04:57]} 19. Nxd4 {[%emt 0:14:50]} exd4+ {[%emt 0:00:08]} 20. Kd2 {[%emt 0:00:15]} Qg6 {[%emt 0:06:22]} 21. Bf4 {[%emt 0:07:11]} Ne6 {[%emt 0:03:06]} 22. Qa4+ {[%emt 0:04:26]} Bd7 {[%emt 0:02:08]} 23. Bb5 {[%emt 0:00:23]} Rd8 {[%emt 0:13:38]} 24. Bxd7+ {[%emt 0:01:38]} Rxd7 {[%emt 0:00:07]} 25. Rhe1 {[%emt 0:00:24]} Qf7 {[%emt 0:07:39]} 26. c6 {[%emt 0:01:45]} bxc6 {[%emt 0:01:56]} 27. Qxc6 {[%emt 0:00:12]} 1-0

[Event "Romanian Superliga Women 2024"]
[Site "Mamaia"]
[Date "2024.09.30"]
[Round "1.11"]
[White "Bitca, Emilia"]
[Black "Lehaci, Miruna-Daria"]
[Result "0-1"]
[Annotator "RC"]
[ECO "B51"]
[WhiteElo "1865"]
[BlackElo "2180"]
[PlyCount "56"]
[EventDate "2024.09.26"]
[EventType "team-tourn"]
[EventCountry "ROU"]
[SourceTitle "playchess.com"]
[Source "ChessBase"]
[SourceQuality "1"]
[TimeControl "40/5400+30:1800+30"]

1. e4 {[%emt 0:00:07]} c5 {[%emt 0:00:06]} 2. Nf3 {[%emt 0:00:13]} d6 {[%emt 0:00:05]} 3. Bb5+ {[%emt 0:00:18]} Nd7 {[%emt 0:00:19]} 4. c3 {[%emt 0:00:26]} Ngf6 {[%emt 0:00:16]} 5. Qe2 {[%emt 0:00:18]} a6 {[%emt 0:00:26]} 6. Ba4 {[%emt 0:00:26]} g6 {[%emt 0:00:30]} 7. O-O {[%emt 0:00:53]} Bg7 {[%emt 0:00:38]} 8. d4 {[%emt 0:02:07]} b5 {[%emt 0:00:43]} 9. Bc2 {[%emt 0:00:12]} Bb7 {[%emt 0:00:35]} 10. Rd1 {[%emt 0:06:09]} O-O {[%emt 0:01:52]} 11. a4 {[%emt 0:06:25]} cxd4 {[%emt 0:02:20]} 12. cxd4 {[%emt 0:03:08]} Nb6 {[%emt 0:01:37]} 13. axb5 {[%emt 0:07:08]} axb5 {[%emt 0:00:09]} 14. Rxa8 {[%emt 0:00:30]} Qxa8 {[%emt 0:02:24]} 15. d5 {[%emt 0:18:05]} Rc8 {[%emt 0:17:40]} 16. Bd3 {[%emt 0:08:12]} b4 {[%emt 0:02:03]} 17. Bd2 {[%emt 0:01:33]} Qa4 {[%emt 0:05:42]} 18. Nd4 {[%emt 0:11:02]} Nfxd5 {[%emt 0:06:05]} 19. b3 {[%emt 0:05:22]} Qa5 {[%emt 0:02:49]} 20. Nb5 {[%emt 0:11:05]} Nc3 {[%emt 0:02:05]} 21. N1xc3 {[%emt 0:01:06]} bxc3 {[%emt 0:00:09]} 22. Be3 {[%emt 0:01:44]} Nd7 {[%emt 0:03:55]} 23. Bg5 {[%emt 0:06:56]} Ba6 {[%emt 0:10:06]} 24. Bxe7 {[%emt 0:06:47]} c2 {[%emt 0:05:39]} 25. Rc1 {[%emt 0:00:05]} Bb2 {[%emt 0:00:55]} 26. Nxd6 {[%emt 0:00:33]} Bxc1 {[%emt 0:02:19]} 27. b4 {[%emt 0:02:18]} Qa1 {[%emt 0:00:37]} 28. Nxc8 {[%emt 0:00:40]} Bf4+ {[%emt 0:00:47]} 0-1

[Event "Romanian Superliga Women 2024"]
[Site "Mamaia"]
[Date "2024.09.30"]
[Round "1.12"]
[White "Obada, Ema"]
[Black "Moldovan, Maia-Rut"]
[Result "1-0"]
[Annotator "RC"]
[ECO "B29"]
[WhiteElo "2053"]
[BlackElo "1778"]
[PlyCount "67"]
[EventDate "2024.09.26"]
[EventType "team-tourn"]
[EventCountry "ROU"]
[SourceTitle "playchess.com"]
[Source "ChessBase"]
[SourceQuality "1"]
[TimeControl "40/5400+30:1800+30"]

1. e4 {[%emt 0:00:04]} c5 {[%emt 0:00:12]} 2. Nf3 {[%emt 0:00:08]} Nf6 {[%emt 0:00:12]} 3. e5 {[%emt 0:00:23]} Nd5 {[%emt 0:00:11]} 4. Nc3 {[%emt 0:00:34]} e6 {[%emt 0:00:19]} 5. Nxd5 {[%emt 0:03:05]} exd5 {[%emt 0:00:10]} 6. d4 {[%emt 0:01:35]} Nc6 {[%emt 0:00:49]} 7. dxc5 {[%emt 0:07:23]} Bxc5 {[%emt 0:00:22]} 8. Qxd5 {[%emt 0:19:02]} Qb6 {[%emt 0:00:19]} 9. Bc4 {[%emt 0:05:32]} Bxf2+ {[%emt 0:00:46]} 10. Ke2 {[%emt 0:10:28]} O-O {[%emt 0:00:25]} 11. Rf1 {[%emt 0:04:52]} Bc5 {[%emt 0:00:56]} 12. c3 {[%emt 0:03:51]} Ne7 {[%emt 0:03:24]} 13. Qd1 {[%emt 0:10:26]} d5 {[%emt 0:08:18]} 14. Bd3 {[%emt 0:01:51]} a5 {[%emt 0:20:01]} 15. Qb3 {[%emt 0:03:53]} Qc7 {[%emt 0:18:33]} 16. Bf4 {[%emt 0:02:37]} Ng6 {[%emt 0:43:33]} 17. Bg3 {[%emt 0:00:59]} Be6 {[%emt 0:00:00]} 18. Qc2 {[%emt 0:01:07]} Rac8 {[%emt 0:00:00]} 19. Rae1 {[%emt 0:04:12]} Qc6 {[%emt 0:00:00]} 20. h3 {[%emt 0:02:29]} b5 {[%emt 0:00:00]} 21. a3 {[%emt 0:05:28]} Qb6 {[%emt 0:00:00]} 22. Qd2 {[%emt 0:01:46]} b4 {[%emt 0:00:00]} 23. cxb4 {[%emt 0:01:29]} axb4 {[%emt 0:00:00]} 24. a4 {[%emt 0:00:14]} b3 {[%emt 0:02:24]} 25. Rc1 {[%emt 0:02:32]} Bb4 {[%emt 0:01:17]} 26. Qe3 {[%emt 0:00:34]} Qxe3+ {[%emt 0:00:33]} 27. Kxe3 {[%emt 0:00:01]} Bd7 {[%emt 0:00:25]} 28. Bb5 {[%emt 0:03:15]} Bxb5 {[%emt 0:00:37]} 29. axb5 {[%emt 0:00:02]} Rb8 {[%emt 0:00:21]} 30. Nd4 {[%emt 0:00:48]} Rb6 {[%emt 0:00:41]} 31. Rc7 {[%emt 0:01:12]} h5 {[%emt 0:00:40]} 32. Kd3 {[%emt 0:00:48]} Ba5 {[%emt 0:00:29]} 33. Rd7 {[%emt 0:00:56]} h4 {[%emt 0:00:26]} 34. Bh2 {[%emt 0:00:04]} 1-0